lending/lending_fUSD_20250121
["ID","MTS","AMOUNT","RATE_DAILY","PERIOD"]
[349874958,1737473459774,-500.0,0.00020963,2]
[349874959,1737473459786,-500.0,0.00020963,2]
[349874960,1737473459796,-500.0,0.00020963,2]
[349874961,1737473459805,-500.0,0.00020963,2]
[349874962,1737473459815,-570.53,0.00020963,2]
[349874963,1737473459825,-500.0,0.00020963,2]
[349874964,1737473459834,-500.0,0.00020963,2]
[349874965,1737473459844,-500.0,0.00020963,2]
[349874966,1737473459853,-500.0,0.00020963,2]
[349874967,1737473459863,-500.0,0.00020963,2]
[349874968,1737473459872,-500.0,0.00020963,2]
[349874969,1737473459882,-561.49,0.00020963,2]
[349874970,1737473459892,-1015.68,0.00020963,2]
[349874971,1737473459901,-167.14536902,0.00020963,2]
[349874972,1737473459911,-500.0,0.00020963,2]
[349874973,1737473459920,-500.0,0.00020963,2]
[349874974,1737473459930,-500.0,0.00020963,2]
[349874975,1737473459941,-500.0,0.00020963,2]
[349874976,1737473459950,-500.0,0.00020964,2]
[349874977,1737473459960,-500.0,0.00020964,2]
[349874978,1737473459971,-519.55,0.00020964,2]
[349874979,1737473459981,-500.0,0.00020964,2]
[349874980,1737473459991,-500.0,0.00020964,2]
[349874981,1737473460001,-500.0,0.00020964,2]
[349874982,1737473460013,-517.70502711,0.00020964,2]
[349874983,1737473460024,-500.0,0.00020964,2]
[349874984,1737473460036,-181.05,0.00020964,2]
[349874985,1737473460046,-500.0,0.00020964,2]
[349874986,1737473460058,-2611.03418797,0.00020969,2]
[349874987,1737473460073,-151.0,0.00020969,2]
[349874988,1737473460085,-151.0,0.00020969,2]
[349874989,1737473460095,-2292.673232,0.00020969,2]
[349874990,1737473460106,-151.0,0.00020969,2]
[349874991,1737473460117,-2292.673232,0.00020969,2]
[349874992,1737473460126,-163.36438511,0.00020973,2]
[349874993,1737473460136,-162.47767584,0.00020973,2]
[349874994,1737473460146,-151.15569928,0.00020973,2]
[349874995,1737473460156,-2562.06,0.00020979,2]
[349874996,1737473460166,-427.28,0.00020985,2]
[349874997,1737473460177,-150.0,0.00020985,2]
[349874998,1737473460188,-719.00570339,0.00020989,2]
[349874999,1737473460198,-2277.2571623,0.00020989,2]
[349875000,1737473460207,-537.2090439,0.00020992,2]
[349875001,1737473460217,-2330.7690724,0.00020992,2]
[349875002,1737473460227,-1996.6169424,0.00020992,2]
[349875003,1737473460237,-255.0595119,0.00020995,2]
[349875004,1737473460249,-999.0,0.00020995,2]
[349875005,1737473460259,-144038.8196751,0.00020996,2]
[349875006,1737473460268,-151.0,0.00020996,2]
[349875007,1737473460280,-151.0,0.00020996,2]
[349875008,1737473460289,-151.0,0.00020996,2]
[349875009,1737473460299,-151.0,0.00020996,2]
[349875010,1737473460309,-151.0,0.00020996,2]
[349875011,1737473460319,-797.589689,0.00020996,2]
[349875012,1737473460329,-797.589689,0.00020996,2]
[349875013,1737473460339,-214.738024,0.00020996,2]
[349875014,1737473460349,-214.738024,0.00020996,2]
[349875015,1737473460359,-151.0,0.00020996,2]
[349875016,1737473460369,-151.0,0.00020996,2]
[349875017,1737473460379,-151.0,0.00020996,2]
[349875018,1737473460389,-490.744439,0.00020996,2]
[349875019,1737473460399,-151.735605,0.00020996,2]
[349875020,1737473460409,-490.744439,0.00020996,2]
[349875021,1737473460419,-151.0,0.00020996,2]
[349875022,1737473460429,-151.0,0.00020996,2]
[349875023,1737473460439,-835.588947,0.00020996,2]
[349875024,1737473460449,-835.588947,0.00020996,2]
[349875025,1737473460459,-151.0,0.00020996,2]
[349875026,1737473460469,-559.98329351,0.00021,2]
[349875027,1737473460479,-1201584.17356308,0.00021,2]
[349875028,1737473460490,-1062404.27670949,0.00021,15]
[349875029,1737473460500,-85312.59726482,0.00021,2]
[349875030,1737473460509,-7594.49761491,0.00021,2]
[349875031,1737473460519,-1143.35343234,0.00021,2]
[349875032,1737473460531,-188.65985442,0.00021,2]
[349875033,1737473460541,-2477.76,0.00021,2]
[349875034,1737473460551,-227.475144,0.00021,2]
[349875035,1737473460562,-227.475144,0.00021,2]
[349875036,1737473460573,-151.0,0.00021,2]
[349875037,1737473460583,-151.0,0.00021,2]
[349875038,1737473460599,-221.0049,0.00021,2]
[349875039,1737473460609,-1800.0,0.00021,22]
[349875040,1737473460620,-219.0,0.00021,2]
[349875041,1737473460630,-151.0,0.00021,2]
[349875042,1737473460641,-151.0,0.00021,2]
[349875043,1737473460652,-151.0,0.00021,2]
[349875044,1737473460664,-151.0,0.00021,2]
[349875045,1737473460675,-151.0,0.00021,2]
[349875046,1737473460685,-797.589689,0.00021,2]
[349875047,1737473460696,-797.589689,0.00021,2]
[349875048,1737473460707,-505.709005,0.00021,2]
[349875049,1737473460716,-214.738024,0.00021,2]
[349875050,1737473460726,-214.738024,0.00021,2]
[349875051,1737473460735,-151.0,0.00021,2]
[349875052,1737473460745,-151.0,0.00021,2]
[349875053,1737473460755,-151.0,0.00021,2]
[349875054,1737473460766,-490.744439,0.00021,2]
[349875055,1737473460778,-490.744439,0.00021,2]
[349875056,1737473460791,-151.0,0.00021,2]
[349875057,1737473460801,-151.0,0.00021,2]
[349875058,1737473460812,-835.588947,0.00021,2]
[349875059,1737473460822,-835.588947,0.00021,2]
[349875060,1737473460833,-151.0,0.00021,2]
[349875061,1737473460844,-31252.22140279,0.00021,2]
[349875062,1737473460854,-151.0,0.00021,2]
[349875063,1737473460865,-231.958833,0.00021,2]
[349875064,1737473460876,-514.86278,0.00021,2]
[349875065,1737473460886,-777.964969,0.00021,2]
[349875066,1737473460897,-514.86278,0.00021,2]
[349875067,1737473460907,-777.964969,0.00021,2]
[349875068,1737473460917,-151.0,0.00021,2]
[349875069,1737473460927,-151.0,0.00021,2]
[349875070,1737473460937,-151.0,0.00021,2]
[349875071,1737473460948,-3000.0,0.00021,2]
[349875072,1737473460959,-151.0,0.00021,2]
[349875073,1737473460974,-2292.673232,0.00021,2]
[349875074,1737473460993,-151.0,0.00021,2]
[349875075,1737473461010,-2292.673232,0.00021,2]
[349875076,1737473461027,-5012.6081564,0.00021006,2]
[349875077,1737473461044,-150.0,0.00021017,2]
[349875078,1737473461055,-500.0,0.00021021,2]
[349875079,1737473461233,-266.025284,0.00021036,2]
[349875080,1737473461244,-514.86278,0.00021036,2]
[349875081,1737473461255,-777.964969,0.00021036,2]
[349875082,1737473461266,-514.86278,0.00021036,2]
[349875083,1737473461276,-777.964969,0.00021036,2]
[349875084,1737473461295,-151.0,0.00021036,2]
[349875085,1737473461305,-275.814868,0.00021036,2]
[349875086,1737473461315,-151.0,0.00021036,2]
[349875087,1737473461326,-151.657549,0.00021036,2]
[349875088,1737473461337,-2292.673232,0.00021036,2]
[349875089,1737473461347,-151.0,0.00021036,2]
[349875090,1737473461358,-2292.673232,0.00021036,2]
[349875091,1737473461369,-157.088995,0.00021037,2]
[349875092,1737473461380,-151.0,0.00021037,2]
[349875093,1737473461390,-835.588947,0.00021037,2]
[349875094,1737473461401,-835.588947,0.00021037,2]
[349875095,1737473461410,-151.0,0.00021037,2]
[349875096,1737473461420,-5146.75447676,0.00021037,2]
[349875097,1737473461430,-151.0,0.00021038,2]
[349875098,1737473461440,-151.0,0.00021038,2]
[349875099,1737473461450,-151.0,0.00021038,2]
[349875100,1737473461460,-490.744439,0.00021038,2]
[349875101,1737473461469,-490.744439,0.00021038,2]
[349875102,1737473461479,-1544.45,0.00021041,2]
[349875103,1737473461490,-5128.38246902,0.00021067,2]
[349875104,1737473461501,-150.0,0.00021068,2]
[349875105,1737473461511,-500.0,0.00021073,2]
[349875106,1737473461521,-377.17375786,0.00021073,2]
[349875107,1737473461533,-150.0,0.00021078,2]
[349875108,1737473461543,-150.0,0.00021092,2]
[349875109,1737473461553,-1060.23,0.00021095,2]
[349875110,1737473461563,-798.17,0.00021095,2]
[349875111,1737473461573,-942.98,0.00021095,2]
[349875112,1737473461584,-2259.34,0.00021095,2]
[349875113,1737473461596,-594.95,0.00021095,2]
[349875114,1737473461607,-2519.97,0.00021095,2]
[349875115,1737473461617,-1308.03,0.00021095,2]
[349875116,1737473461627,-2381.77,0.00021095,2]
[349875117,1737473461637,-500.0,0.00021095,2]
[349875118,1737473461647,-1433.61,0.00021095,2]
[349875119,1737473461659,-1212.32,0.00021095,2]
[349875120,1737473461669,-2759.2,0.00021095,2]
[349875121,1737473461679,-3089.35,0.00021095,2]
[349875122,1737473461690,-1366.21,0.00021095,2]
[349875123,1737473461700,-1044.2,0.00021095,2]
[349875124,1737473461709,-500.0,0.00021095,2]
[349875125,1737473461720,-2875.08,0.00021095,2]
[349875126,1737473461730,-500.0,0.00021095,2]
[349875127,1737473461740,-500.0,0.00021095,2]
[349875128,1737473461750,-605.40967266,0.00021095,2]
[349875129,1737473461761,-500.0,0.00021095,2]
[349875130,1737473461771,-500.0,0.00021095,2]
[349875131,1737473461784,-500.0,0.00021095,2]
[349875132,1737473461794,-956.78,0.00021095,2]
[349875133,1737473461805,-500.0,0.00021095,2]
[349875134,1737473461816,-568.62,0.00021095,2]
[349875135,1737473461827,-2749.15,0.00021095,2]
[349875136,1737473461837,-363.77945564,0.00021107,2]
[349875137,1737473461847,-150.0,0.00021119,2]
[349875138,1737473461858,-2102.1,0.00021137,7]
[349875139,1737473461869,-2102.1,0.00021137,7]
[349875140,1737473461880,-500.0,0.00021137,2]
[349875141,1737473461891,-2186.55,0.00021137,2]
[349875142,1737473461901,-1085.09,0.00021137,2]
[349875143,1737473461912,-2730.73,0.00021137,2]
[349875144,1737473461926,-695.234373,0.00021137,2]
[349875145,1737473461936,-717.16,0.00021137,2]
[349875146,1737473461946,-1048.01,0.00021137,2]
[349875147,1737473461957,-643.95,0.00021137,2]
[349875148,1737473461967,-2281.5,0.00021137,2]
[349875149,1737473461978,-500.0,0.00021137,2]
[349875150,1737473461988,-3969.3,0.00021137,2]
[349875151,1737473461998,-690.17,0.00021137,2]
[349875152,1737473462009,-707.287074,0.00021137,2]
[349875153,1737473462020,-500.0,0.00021137,2]
[349875154,1737473462045,-1201.35,0.00021137,2]
[349875155,1737473462056,-500.0,0.00021137,2]
[349875156,1737473462066,-1823.94,0.00021137,2]
[349875157,1737473462077,-1013.43,0.00021137,2]
[349875158,1737473462088,-1273.27,0.00021137,2]
[349875159,1737473462099,-3423.41,0.00021137,2]
[349875160,1737473462109,-2649.6,0.00021137,2]
[349875161,1737473462120,-3456.73,0.00021137,2]
[349875162,1737473462131,-500.0,0.00021137,2]
[349875163,1737473462142,-1434.78,0.00021137,2]
[349875164,1737473462153,-3690.04,0.00021137,2]
[349875165,1737473462163,-7080.07,0.00021137,2]
[349875166,1737473462174,-1249.4,0.00021137,2]
[349875167,1737473462184,-1727.92,0.00021137,2]
[349875168,1737473462195,-807.0,0.00021137,2]
[349875169,1737473462204,-1972.89,0.00021137,2]
[349875170,1737473462214,-500.0,0.00021137,2]
[349875171,1737473462225,-872.86,0.00021137,2]
[349875172,1737473462235,-1915.51,0.00021137,2]
[349875173,1737473462247,-2778.0,0.00021137,2]
[349875174,1737473462257,-1925.43,0.00021137,2]
[349875175,1737473462268,-1775.46,0.00021137,2]
[349875176,1737473462278,-4939.84776378,0.00021137,2]
[349875177,1737473462293,-150.0,0.00021145,2]
[349875178,1737473462304,-622.56,0.00021178,2]
[349875179,1737473462314,-300.0,0.00021178,2]
[349875180,1737473462324,-150.0,0.00021178,2]
[349875181,1737473462334,-150.0,0.00021178,2]
[349875182,1737473462344,-875.42,0.00021178,2]
[349875183,1737473462354,-981.79,0.00021178,2]
[349875184,1737473462364,-981.79,0.00021178,2]
[349875185,1737473462375,-150.0,0.00021178,2]
[349875186,1737473462385,-150.0,0.00021178,2]
[349875187,1737473462395,-150.0,0.00021178,2]
[349875188,1737473462405,-981.79,0.00021178,2]
[349875189,1737473462416,-150.0,0.00021178,2]
[349875190,1737473462427,-150.0,0.00021178,2]
[349875191,1737473462436,-437.71,0.00021178,2]
[349875192,1737473462447,-300.0,0.00021178,2]
[349875193,1737473462457,-981.79,0.00021178,2]
[349875194,1737473462467,-150.0,0.00021178,2]
[349875195,1737473462476,-150.0,0.00021178,2]
[349875196,1737473462487,-981.79,0.00021178,2]
[349875197,1737473462497,-150.0,0.00021178,2]
[349875198,1737473462507,-981.79,0.00021178,2]
[349875199,1737473462517,-981.79,0.00021178,2]
[349875200,1737473462526,-981.79,0.00021178,2]
[349875201,1737473462541,-981.79,0.00021178,2]
[349875202,1737473462551,-981.79,0.00021178,2]
[349875203,1737473462561,-981.79,0.00021178,2]
[349875204,1737473462571,-981.79,0.00021178,2]
[349875205,1737473462581,-981.79,0.00021178,2]
[349875206,1737473462592,-981.79,0.00021178,2]
[349875207,1737473462602,-981.79,0.00021178,2]
[349875208,1737473462612,-981.79,0.00021178,2]
[349875209,1737473462623,-981.79,0.00021178,2]
[349875210,1737473462634,-150.0,0.00021181,2]
[349875211,1737473462644,-151.0,0.00021217,2]
[349875212,1737473462654,-151.0,0.00021217,2]
[349875213,1737473462663,-797.589689,0.00021217,2]
[349875214,1737473462673,-797.589689,0.00021217,2]
[349875215,1737473462682,-214.738024,0.00021217,2]
[349875216,1737473462691,-214.738024,0.00021217,2]
[349875217,1737473462701,-1000.0,0.00021219,2]
[349875218,1737473462711,-908.20373904,0.00021221,2]
[349875219,1737473462721,-1000.0,0.00021221,2]
[349875220,1737473462731,-1000.0,0.00021221,2]
[349875221,1737473462741,-5128.38246902,0.00021233,2]
[349875222,1737473462750,-666.0,0.00021235,2]
[349875223,1737473462759,-1185.29,0.00021235,2]
[349875224,1737473462769,-1037.37,0.00021235,2]
[349875225,1737473462784,-1464.7,0.00021235,2]
[349875226,1737473462794,-2048.12,0.00021235,2]
[349875227,1737473462804,-1012.72,0.00021235,2]
[349875228,1737473462815,-1761.97,0.00021235,2]
[349875229,1737473462827,-1200.93,0.00021235,2]
[349875230,1737473462838,-3170.05,0.00021235,2]
[349875231,1737473462848,-1945.14,0.00021235,2]
[349875232,1737473462860,-1359.14,0.00021235,2]
[349875233,1737473462870,-2481.22,0.00021235,2]
[349875234,1737473462881,-500.0,0.00021235,2]
[349875235,1737473462891,-759.9,0.00021235,2]
[349875236,1737473462902,-5664.97,0.00021235,2]
[349875237,1737473462913,-704.48,0.00021235,2]
[349875238,1737473462924,-500.0,0.00021235,2]
[349875239,1737473462934,-500.0,0.00021235,2]
[349875240,1737473462944,-1656.29,0.00021235,2]
[349875241,1737473462955,-5088.9,0.00021235,2]
[349875242,1737473462965,-500.0,0.00021235,2]
[349875243,1737473462975,-500.0,0.00021236,2]
[349875244,1737473462985,-500.0,0.00021236,2]
[349875245,1737473462996,-500.0,0.00021236,2]
[349875246,1737473463006,-500.0,0.00021236,2]
[349875247,1737473463021,-500.0,0.00021236,2]
[349875248,1737473463040,-500.0,0.00021236,2]
[349875249,1737473463052,-516.09092965,0.00021236,2]
[349875250,1737473463065,-500.0,0.00021236,2]
[349875251,1737473463083,-500.0,0.00021236,2]
[349875252,1737473463095,-203.23439036,0.00021236,2]
[349875253,1737473463105,-500.0,0.00021236,2]
[349875254,1737473463116,-500.0,0.00021236,2]
[349875255,1737473463127,-500.0,0.00021236,2]
[349875256,1737473463138,-500.0,0.00021236,2]
[349875257,1737473463148,-500.0,0.00021236,2]
[349875258,1737473463159,-500.0,0.00021236,2]
[349875259,1737473463170,-500.0,0.00021236,2]
[349875260,1737473463181,-500.0,0.00021236,2]
[349875261,1737473463192,-500.0,0.00021236,2]
[349875262,1737473463203,-500.0,0.00021236,2]
[349875263,1737473463213,-500.0,0.00021236,2]
[349875264,1737473463224,-497.00459664,0.00021236,2]
[349875265,1737473463235,-500.0,0.00021236,2]
[349875266,1737473463247,-500.0,0.00021236,2]
[349875267,1737473463259,-500.0,0.00021236,2]
[349875268,1737473463270,-500.0,0.00021236,2]
[349875269,1737473463284,-500.0,0.00021236,2]
[349875270,1737473463295,-500.0,0.00021236,2]
[349875271,1737473463306,-538.76,0.00021236,2]
[349875272,1737473463318,-500.0,0.00021236,2]
[349875273,1737473463328,-500.0,0.00021236,2]
[349875274,1737473463338,-800.79,0.00021236,2]
[349875275,1737473463348,-500.0,0.00021236,2]
[349875276,1737473463358,-500.0,0.00021236,2]
[349875277,1737473463368,-500.0,0.00021236,2]
[349875278,1737473463379,-500.0,0.00021236,2]
[349875279,1737473463391,-500.0,0.00021236,2]
[349875280,1737473463402,-500.0,0.00021236,2]
[349875281,1737473463416,-500.0,0.00021236,2]
[349875282,1737473463427,-500.0,0.00021236,2]
[349875283,1737473463438,-500.0,0.00021236,2]
[349875284,1737473463449,-500.0,0.00021236,2]
[349875285,1737473463460,-500.0,0.00021236,2]
[349875286,1737473463471,-500.0,0.00021236,2]
[349875287,1737473463481,-1031.68,0.00021236,2]
[349875288,1737473463491,-500.0,0.00021236,2]
[349875289,1737473463501,-500.0,0.00021236,2]
[349875290,1737473463511,-500.0,0.00021236,2]
[349875291,1737473463520,-500.0,0.00021236,2]
[349875292,1737473463532,-500.0,0.00021236,2]
[349875293,1737473463543,-500.0,0.00021236,2]
[349875294,1737473463554,-500.0,0.00021236,2]
[349875295,1737473463564,-500.0,0.00021236,2]
[349875296,1737473463574,-500.0,0.00021236,2]
[349875297,1737473463585,-500.0,0.00021236,2]
[349875298,1737473463596,-500.0,0.00021236,2]
[349875299,1737473463606,-500.0,0.00021236,2]
[349875300,1737473463616,-500.0,0.00021236,2]
[349875301,1737473463630,-500.0,0.00021236,2]
[349875302,1737473463641,-500.0,0.00021236,2]
[349875303,1737473463651,-561.54,0.00021236,2]
[349875304,1737473463661,-500.0,0.00021236,2]
[349875305,1737473463671,-500.0,0.00021236,2]
[349875306,1737473463682,-500.0,0.00021236,2]
[349875307,1737473463693,-676.22,0.00021236,2]
[349875308,1737473463704,-500.0,0.00021236,2]
[349875309,1737473463715,-500.0,0.00021236,2]
[349875310,1737473463725,-500.0,0.00021236,2]
[349875311,1737473463741,-500.0,0.00021236,2]
[349875312,1737473463752,-500.0,0.00021236,2]
[349875313,1737473463762,-524.32395509,0.00021236,2]
[349875314,1737473463772,-500.0,0.00021236,2]
[349875315,1737473463784,-500.0,0.00021236,2]
[349875316,1737473463795,-621.598423,0.00021236,2]
[349875317,1737473463808,-500.0,0.00021236,2]
[349875318,1737473463819,-500.0,0.00021236,2]
[349875319,1737473463829,-500.0,0.00021236,2]
[349875320,1737473463840,-500.0,0.00021236,2]
[349875321,1737473463849,-500.0,0.00021236,2]
[349875322,1737473463859,-500.0,0.00021236,2]
[349875323,1737473463870,-500.0,0.00021236,2]
[349875324,1737473463931,-500.0,0.00021236,2]
[349875325,1737473463942,-500.0,0.00021236,2]
[349875326,1737473463952,-294.82772123,0.00021236,2]
[349875327,1737473463962,-500.0,0.00021236,2]
[349875328,1737473463972,-352.36831387,0.00021236,2]
[349875329,1737473463982,-500.0,0.00021236,2]
[349875330,1737473463992,-500.0,0.00021236,2]
[349875331,1737473464003,-500.0,0.00021236,2]
[349875332,1737473464016,-500.0,0.00021236,2]
[349875333,1737473464026,-500.0,0.00021236,2]
[349875334,1737473464040,-500.0,0.00021236,2]
[349875335,1737473464049,-500.0,0.00021236,2]
[349875336,1737473464059,-500.0,0.00021236,2]
[349875337,1737473464069,-500.0,0.00021236,2]
[349875338,1737473464080,-500.0,0.00021236,2]
[349875339,1737473464090,-500.0,0.00021236,2]
[349875340,1737473464101,-500.0,0.00021236,2]
[349875341,1737473464113,-215.85140393,0.00021236,2]
[349875342,1737473464125,-500.0,0.00021236,2]
[349875343,1737473464135,-500.0,0.00021236,2]
[349875344,1737473464146,-500.0,0.00021236,2]
[349875345,1737473464155,-500.0,0.00021236,2]
[349875346,1737473464164,-500.0,0.00021236,2]
[349875347,1737473464174,-500.0,0.00021236,2]
[349875348,1737473464185,-500.0,0.00021236,2]
[349875349,1737473464195,-500.0,0.00021236,2]
[349875350,1737473464205,-500.0,0.00021236,2]
[349875351,1737473464216,-500.0,0.00021236,2]
[349875352,1737473464226,-551.68,0.00021236,2]
[349875353,1737473464237,-500.0,0.00021236,2]
[349875354,1737473464247,-500.0,0.00021236,2]
[349875355,1737473464257,-500.0,0.00021236,2]
[349875356,1737473464267,-743.99,0.00021236,2]
[349875357,1737473464278,-500.0,0.00021236,2]
[349875358,1737473464292,-1339.79,0.00021236,2]
[349875359,1737473464305,-500.0,0.00021236,2]
[349875360,1737473464315,-500.0,0.00021236,2]
[349875361,1737473464325,-500.0,0.00021236,2]
[349875362,1737473464336,-700.87,0.00021236,2]
[349875363,1737473464346,-5941.55,0.00021236,2]
[349875364,1737473464356,-761.67,0.00021236,2]
[349875365,1737473464367,-793.56,0.00021236,2]
[349875366,1737473464378,-500.0,0.00021236,2]
[349875367,1737473464390,-819.05,0.00021236,2]
[349875368,1737473464402,-500.0,0.00021236,2]
[349875369,1737473464412,-1623.42,0.00021236,2]
[349875370,1737473464422,-838.55,0.00021236,2]
[349875371,1737473464431,-509.73201618,0.00021236,2]
[349875372,1737473464441,-782.4,0.00021236,2]
[349875373,1737473464453,-500.0,0.00021236,2]
[349875374,1737473464463,-691.14,0.00021236,2]
[349875375,1737473464473,-805.7,0.00021236,2]
[349875376,1737473464483,-878.93,0.00021236,2]
[349875377,1737473464493,-696.04,0.00021236,2]
[349875378,1737473464502,-1085.81,0.00021236,2]
[349875379,1737473464512,-500.0,0.00021236,2]
[349875380,1737473464521,-702.89,0.00021236,2]
[349875381,1737473464533,-708.73,0.00021236,2]
[349875382,1737473464543,-395.98635919,0.00021236,7]
[349875383,1737473464553,-500.0,0.00021236,2]
[349875384,1737473464563,-1558.1,0.00021236,2]
[349875385,1737473464573,-1081.56,0.00021236,2]
[349875386,1737473464584,-4278.12,0.00021236,2]
[349875387,1737473464595,-1504.83,0.00021236,2]
[349875388,1737473464608,-500.0,0.00021236,2]
[349875389,1737473464618,-830.43,0.00021236,2]
[349875390,1737473464629,-879.22,0.00021236,2]
[349875391,1737473464639,-500.0,0.00021236,2]
[349875392,1737473464649,-574.82,0.00021236,2]
[349875393,1737473464659,-500.0,0.00021236,2]
[349875394,1737473464670,-612.07,0.00021236,2]
[349875395,1737473464680,-500.0,0.00021236,2]
[349875396,1737473464690,-2201.27,0.00021236,2]
[349875397,1737473464699,-500.0,0.00021236,2]
[349875398,1737473464709,-1519.29,0.00021236,2]
[349875399,1737473464718,-604.2,0.00021236,2]
[349875400,1737473464728,-842.48,0.00021236,2]
[349875401,1737473464738,-500.0,0.00021236,2]
[349875402,1737473464748,-557.74,0.00021236,2]
[349875403,1737473464757,-1382.98,0.00021236,2]
[349875404,1737473464767,-500.0,0.00021236,2]
[349875405,1737473464777,-1064.96,0.00021236,2]
[349875406,1737473464789,-500.0,0.00021236,2]
[349875407,1737473464799,-500.0,0.00021236,2]
[349875408,1737473464808,-1210.77,0.00021236,2]
[349875409,1737473464817,-500.0,0.00021236,2]
[349875410,1737473464827,-891.46,0.00021236,2]
[349875411,1737473464837,-500.0,0.00021236,2]
[349875412,1737473464846,-500.0,0.00021236,2]
[349875413,1737473464856,-226.97593981,0.00021236,2]
[349875414,1737473464866,-500.0,0.00021236,2]
[349875415,1737473464877,-500.0,0.00021236,2]
[349875416,1737473464887,-1000.0,0.00021236,2]
[349875417,1737473464897,-500.0,0.00021236,2]
[349875418,1737473464907,-500.0,0.00021236,2]
[349875419,1737473464917,-1185.76,0.00021236,2]
[349875420,1737473464928,-500.0,0.00021236,2]
[349875421,1737473464938,-1985.84,0.00021236,2]
[349875422,1737473464948,-566.55,0.00021236,2]
[349875423,1737473464958,-500.0,0.00021236,2]
[349875424,1737473464969,-1080.53,0.00021236,2]
[349875425,1737473464978,-525.85,0.00021236,2]
[349875426,1737473464989,-500.0,0.00021236,2]
[349875427,1737473464999,-1470.2,0.00021236,2]
[349875428,1737473465009,-194.88812724,0.00021236,2]
[349875429,1737473465019,-500.0,0.00021237,2]
[349875430,1737473465034,-500.0,0.00021237,2]
[349875431,1737473465044,-500.0,0.00021237,2]
[349875432,1737473465054,-500.0,0.00021237,2]
[349875433,1737473465065,-587.27305896,0.00021237,2]
[349875434,1737473465074,-500.0,0.00021237,2]
[349875435,1737473465084,-607.2,0.00021237,2]
[349875436,1737473465094,-500.0,0.00021237,2]
[349875437,1737473465106,-500.0,0.00021237,2]
[349875438,1737473465117,-500.0,0.00021237,2]
[349875439,1737473465127,-464.91230609,0.00021237,2]
[349875440,1737473465138,-500.0,0.00021237,2]
[349875441,1737473465148,-500.0,0.00021237,2]
[349875442,1737473465158,-500.0,0.00021237,2]
[349875443,1737473465168,-500.0,0.00021237,2]
[349875444,1737473465178,-500.0,0.00021237,2]
[349875445,1737473465188,-500.0,0.00021237,2]
[349875446,1737473465198,-151.0,0.00021237,2]
[349875447,1737473465209,-151.0,0.00021237,2]
[349875448,1737473465220,-500.0,0.00021237,2]
[349875449,1737473465232,-500.0,0.00021237,2]
[349875450,1737473465242,-500.0,0.00021237,2]
[349875451,1737473465253,-151.0,0.00021237,2]
[349875452,1737473465263,-174.63373672,0.00021237,2]
[349875453,1737473465273,-500.0,0.00021237,2]
[349875454,1737473465287,-600.6,0.00021237,2]
[349875455,1737473465298,-309.53186288,0.00021237,2]
[349875456,1737473465308,-500.0,0.00021237,2]
[349875457,1737473465318,-500.0,0.00021237,2]